Workbook

Sheet Area
B2: N5 Lifeskills - Problem Solving Area Created by Mr.Lafferty@mathsrevision.com
B7: ="Q1. Hannah want to wallpaper one wall in her livingroom." -> Q1. Hannah want to wallpaper one wall in her livingroom.
C9: =" 1 roll of wallpaper measures "&BA17&" in length and "&BA14&" in width." -> 1 roll of wallpaper measures 6m in length and 60cm in width. | AU9: =BA16 -> 4m
C11: ="(a) Work out how many rolls of wallpaper she will need." -> (a) Work out how many rolls of wallpaper she will need. | AZ11: =ROUND(RAND()*(4-3)+3,0) -> 4 | BA11: height length
AZ12: =AZ11*2+1 -> 9 | BA12: length of room
V13: rolls | AD13: =BA14 -> 60cm | AZ13: =ROUND(RAND()*(10-4)+4,0) -> 6 | BA13: wallpaper length
AD14: =BA15 -> 9m | AZ14: =ROUND(RAND()*(8-4)+4,0)*10 -> 60 | BA14: =CONCATENATE(AZ14,"cm") -> 60cm
AZ15: =ROUNDDOWN(AZ13/AZ11,0) -> 1 | BA15: =CONCATENATE(AZ12,"m") -> 9m
C16: ="(b) Given one roll of wallpaper cost £"&TEXT(AZ18,"0.00")&" calculate her total cost for the wallpaper." -> (b) Given one roll of wallpaper cost £14.50 calculate her total cost for the wallpaper. | AZ16: =ROUNDUP(AZ12*100/AZ14,0) -> 15 | BA16: =CONCATENATE(AZ11,"m") -> 4m
AF17: £ | AZ17: =ROUNDUP(AZ16/AZ15,0) -> 15 | BA17: =CONCATENATE(AZ13,"m") -> 6m
AZ18: =ROUND(RAND()*(15-8)+8,1) -> 14.5
AZ19: =ROUND(AZ17*AZ18,2) -> 217.5
B21: ="Q2. Alistair the tiler has got a job to tile a bathroom wall." -> Q2. Alistair the tiler has got a job to tile a bathroom wall. | AZ21: =ROUND(RAND()*(5-3)+3,0) -> 4 | BA21: =CONCATENATE(AZ21,"m") -> 4m
AZ22: =AZ21+1 -> 5
C23: ="He uses square tiles that have sides "&BA23&"." -> He uses square tiles that have sides 60cm. | AZ23: =ROUND(RAND()*(8-4)+4,0)*10 -> 60 | BA23: =CONCATENATE(AZ23,"cm") -> 60cm
AR24: =BB25 -> 2.4m
C25: ="(a) Work out how many tiles he need to cover the whole wall." -> (a) Work out how many tiles he need to cover the whole wall. | AZ25: =AZ21*AZ23 -> 240 | BA25: =AZ25/100 -> 2.4 | BB25: =CONCATENATE(BA25,"m") -> 2.4m | BC25: height length
AZ26: =AZ22*AZ23 -> 300 | BA26: =AZ26/100 -> 3 | BB26: =CONCATENATE(BA26,"m") -> 3m | BC26: length of room
V27: rolls
AK28: =BB26 -> 3m
AZ29: =AZ22*AZ21 -> 20
C30: ="(b) Given one roll of wallpaper cost £"&TEXT(AZ32,"0.00")&" calculate her total cost for the wallpaper." -> (b) Given one roll of wallpaper cost £8.80 calculate her total cost for the wallpaper.
AF31: £
AZ32: =ROUND(RAND()*(15-8)+8,1) -> 8.8
AZ33: =AZ29*AZ32 -> 176
AZ34: =ROUND(RAND()*(2-1.5)+1.5,1) -> 1.7 | BA34: =CONCATENATE(AZ34,"m") -> 1.7m
B35: ="Q3. Kyle is going to paint the outside walls of his tool shed. The shed has a window." -> Q3. Kyle is going to paint the outside walls of his tool shed. The shed has a window. | AZ35: =ROUND(RAND()*(8-5)+5,0)*0.5 -> 4 | BA35: =CONCATENATE(AZ35,"m") -> 4m
D36: ="The shed is in the shape of a cuboid." -> The shed is in the shape of a cuboid. | AR36: =BA35 -> 4m | AZ36: =AZ35-ROUND(RAND()*(1-0.5)+0.5,1) -> 3.1 | BA36: =CONCATENATE(AZ36,"m") -> 3.1m
AZ37: =AZ36+ROUND(RAND()*(2-1.2)+1.2,1) -> 4.6 | BA37: 4.6m
D38: =" 1 litre of paint covers an area of "&AZ42&" square metres and costs £"&TEXT(AZ46,"0.00")&"." -> 1 litre of paint covers an area of 13 square metres and costs £12.50. | AI38: 1m | AZ38: =2*AZ35*AZ36 -> 24.8
AZ39: =2*AZ37*AZ35-(1*AZ34) -> 35.1
AK40: =BA34 -> 1.7m
C41: ="(a) How many tins of paint will Kyle need ?" -> (a) How many tins of paint will Kyle need ? | V41: tins | AQ41: =BA36 -> 3.1m
AF42: =BA37 -> 4.6m | AZ42: =ROUND(RAND()*(15-7)+7,0) -> 13 | BA42: coverage
AZ43: =AZ38+AZ39 -> 59.9 | BA43: Area needed
C44: ="(b) Calculate the total cost of the paint needed." -> (b) Calculate the total cost of the paint needed. | S44: £ | AZ44: =AZ43/AZ42 -> 4.607692308
AZ45: =ROUNDUP(AZ44,0) -> 5 | BA45: tins
AZ46: =ROUND(RAND()*(19.9-9.9)+9.9,1) -> 12.5
AZ47: =AZ45*AZ46 -> 62.5
AZ48: =ROUND(RAND()*(15-8)+8,0) -> 12 | BA48: =CONCATENATE(AZ48,"m") -> 12m
B49: ="Q4. Mr Lafferty is going to returf his lawn." -> Q4. Mr Lafferty is going to returf his lawn. | AZ49: =ROUND(AZ48 +AZ48*1.6,0) -> 31 | BA49: =CONCATENATE(AZ49,"m") -> 31m
C50: The lawn is in the shape of a square and a triangle. | AC50: =BA48 -> 12m
C52: =" The turf comes in rolls which cover an area of "&AY55&" square metres and cost £"&TEXT(AY57,"0.00")&"." -> The turf comes in rolls which cover an area of 5 square metres and cost £3.40.
AF54: =BA49 -> 31m
C55: ="(a) How many "&AZ55&" square metres of turf will he need ?" -> (a) How many 5 square metres of turf will he need ? | X55: rolls | AZ55: =ROUND(RAND()*(10-3)+3,0) -> 5
AZ56: =AZ48*AZ48+0.5*(AZ49-AZ48)*AZ48 -> 258 | BA56: coverage
AZ57: =ROUND(RAND()*(4.5-2.5)+2.5,1) -> 3.4 | BA57: cost
C58: ="(b) Calculate the total cost of the turf needed." -> (b) Calculate the total cost of the turf needed. | S58: £ | AZ58: =ROUNDUP(AZ56/AZ55,0) -> 52
AZ61: =AZ58*AZ57 -> 176.8
